[Event "Live Chess"]
[Site "Chess.com"]
[Date "2023.05.20"]
[Round "-"]
[White "Greenbecker"]
[Black "lateforthesky"]
[Result "0-1"]
[WhiteElo "1626"]
[BlackElo "2103"]
[TimeControl "300"]
[EndTime "13:02:16 PDT"]
[Termination "lateforthesky won by resignation"]

1. e4 {[%clk 0:04:58.1]} 1... c5 {[%clk 0:04:58.8]} 2. Nf3 {[%clk 0:04:56.3]}
2... Nf6 {[%clk 0:04:57.8]} 3. d4 {[%clk 0:04:45.3]} 3... Nxe4 {[%clk 0:04:53]}
4. Bd3 {[%clk 0:04:40.5]} 4... d5 {[%clk 0:04:50.7]} 5. dxc5 {[%clk 0:04:37.7]}
5... Nxc5 {[%clk 0:04:48.9]} 6. Bb5+ {[%clk 0:04:33.5]} 6... Nc6 {[%clk
0:04:46.8]} 7. Nc3 {[%clk 0:04:31]} 7... e6 {[%clk 0:04:44.6]} 8. O-O {[%clk
0:04:28.2]} 8... Be7 {[%clk 0:04:39.3]} 9. Ne5 {[%clk 0:04:25.5]} 9... Bd7
{[%clk 0:04:16.2]} 10. Nxd7 {[%clk 0:04:21.5]} 10... Nxd7 {[%clk 0:04:10.2]} 11.
Qg4 {[%clk 0:04:18.3]} 11... O-O {[%clk 0:04:03.9]} 12. Bh6 {[%clk 0:04:14]}
12... Bf6 {[%clk 0:04:02.6]} 13. Bd3 {[%clk 0:04:07.1]} 13... Kh8 {[%clk
0:04:00.5]} 14. Bd2 {[%clk 0:04:04.5]} 14... g6 {[%clk 0:03:56.1]} 15. Rae1
{[%clk 0:03:56.1]} 15... Nde5 {[%clk 0:03:42.7]} 16. Qe2 {[%clk 0:03:40.1]}
16... Nxd3 {[%clk 0:03:40.4]} 17. Qxd3 {[%clk 0:03:39.1]} 17... Bg7 {[%clk
0:03:36.9]} 18. Qg3 {[%clk 0:03:27.8]} 18... Nd4 {[%clk 0:03:27.2]} 19. Qd3
{[%clk 0:03:22.5]} 19... Nf5 {[%clk 0:03:23.6]} 20. a4 {[%clk 0:03:05.3]} 20...
Rc8 {[%clk 0:03:18.6]} 21. b3 {[%clk 0:02:56.6]} 21... a6 {[%clk 0:03:14.4]} 22.
Ne2 {[%clk 0:02:50.6]} 22... Qc7 {[%clk 0:02:50.2]} 23. Bb4 {[%clk 0:02:32.3]}
23... Rfd8 {[%clk 0:02:34.4]} 24. c3 {[%clk 0:02:18.4]} 24... a5 {[%clk
0:02:13.9]} 25. Ba3 {[%clk 0:02:17]} 25... d4 {[%clk 0:01:56.5]} 26. c4 {[%clk
0:02:11.1]} 26... e5 {[%clk 0:01:54.6]} 27. Ng3 {[%clk 0:02:03.5]} 27... Nxg3
{[%clk 0:01:52.1]} 28. hxg3 {[%clk 0:01:57.4]} 28... f5 {[%clk 0:01:49.1]} 29.
f3 {[%clk 0:01:42.3]} 29... Re8 {[%clk 0:01:47.6]} 30. Bb2 {[%clk 0:01:34.2]}
30... Rcd8 {[%clk 0:01:45.2]} 31. Qd2 {[%clk 0:01:23.9]} 31... e4 {[%clk
0:01:36.9]} 32. fxe4 {[%clk 0:01:16.9]} 32... fxe4 {[%clk 0:01:35.3]} 33. Qf4
{[%clk 0:01:08.8]} 33... Qxf4 {[%clk 0:01:29.5]} 34. Rxf4 {[%clk 0:01:07.3]}
34... d3 {[%clk 0:01:18.5]} 35. Bxg7+ {[%clk 0:00:59.7]} 35... Kxg7 {[%clk
0:01:18.4]} 36. Kf2 {[%clk 0:00:52.9]} 36... e3+ {[%clk 0:01:10.9]} 37. Rxe3
{[%clk 0:00:40.9]} 37... Rxe3 {[%clk 0:01:08.7]} 38. Kxe3 {[%clk 0:00:38.8]}
38... d2 {[%clk 0:01:08]} 0-1

[Event "Live Chess"]
[Site "Chess.com"]
[Date "2023.05.20"]
[Round "-"]
[White "Fazer180"]
[Black "Ferrarifan27"]
[Result "0-1"]
[WhiteElo "1747"]
[BlackElo "2062"]
[TimeControl "300"]
[EndTime "13:02:22 PDT"]
[Termination "Ferrarifan27 won by resignation"]

1. e4 {[%clk 0:04:59.2]} 1... e5 {[%clk 0:04:58.3]} 2. Nf3 {[%clk 0:04:58.1]}
2... Nc6 {[%clk 0:04:57.2]} 3. d4 {[%clk 0:04:57.8]} 3... exd4 {[%clk
0:04:53.5]} 4. Nxd4 {[%clk 0:04:57.7]} 4... Qh4 {[%clk 0:04:52.4]} 5. Nc3 {[%clk
0:04:45.3]} 5... Bb4 {[%clk 0:04:50.4]} 6. Qd3 {[%clk 0:04:24.4]} 6... Nf6
{[%clk 0:04:46]} 7. a3 {[%clk 0:03:54.2]} 7... Bxc3+ {[%clk 0:04:40.5]} 8. bxc3
{[%clk 0:03:51.9]} 8... Qxe4+ {[%clk 0:04:34.8]} 9. Be3 {[%clk 0:03:45.4]} 9...
Nxd4 {[%clk 0:04:29.6]} 10. Qxe4+ {[%clk 0:03:31.4]} 10... Nxe4 {[%clk
0:04:27.2]} 11. Bxd4 {[%clk 0:03:31.1]} 11... O-O {[%clk 0:04:24.1]} 12. Bd3
{[%clk 0:03:27.5]} 12... Re8 {[%clk 0:04:21.3]} 13. O-O {[%clk 0:03:24.9]} 13...
d5 {[%clk 0:04:16.1]} 14. Rfe1 {[%clk 0:03:21.7]} 14... Bd7 {[%clk 0:04:11.2]}
15. Rab1 {[%clk 0:03:14.9]} 15... b6 {[%clk 0:04:10.3]} 16. c4 {[%clk
0:03:11.6]} 16... Nd2 {[%clk 0:04:01.5]} 17. Rxe8+ {[%clk 0:02:58.3]} 17... Rxe8
{[%clk 0:03:59]} 18. Rd1 {[%clk 0:02:57.8]} 18... Nxc4 {[%clk 0:03:54.7]} 19. a4
{[%clk 0:02:46.4]} 19... Bxa4 {[%clk 0:03:48.4]} 20. h3 {[%clk 0:02:45.2]} 20...
c5 {[%clk 0:03:40.1]} 21. Ba1 {[%clk 0:02:37]} 21... Nd6 {[%clk 0:03:32.4]} 22.
Bf1 {[%clk 0:02:28.2]} 22... d4 {[%clk 0:03:27.8]} 23. Bd3 {[%clk 0:02:20.7]}
23... g6 {[%clk 0:03:06.8]} 24. Kh2 {[%clk 0:02:19.7]} 24... Ne4 {[%clk
0:02:55]} 25. Kg1 {[%clk 0:02:02.4]} 25... Nc3 {[%clk 0:02:44.4]} 26. Bxc3
{[%clk 0:01:59.5]} 26... dxc3 {[%clk 0:02:44.3]} 27. Ra1 {[%clk 0:01:56.6]}
27... b5 {[%clk 0:02:43.3]} 28. Rb1 {[%clk 0:01:48.4]} 28... c4 {[%clk
0:02:39.2]} 29. Bf1 {[%clk 0:01:43]} 29... Bxc2 {[%clk 0:02:35.1]} 30. Rc1
{[%clk 0:01:42]} 30... Bd3 {[%clk 0:02:31.4]} 31. Rxc3 {[%clk 0:01:41.1]} 31...
Re1 {[%clk 0:02:29.5]} 0-1

[Event "Live Chess"]
[Site "Chess.com"]
[Date "2023.05.20"]
[Round "-"]
[White "alanmike75"]
[Black "manthanit"]
[Result "1-0"]
[WhiteElo "1534"]
[BlackElo "1009"]
[TimeControl "300"]
[EndTime "13:02:25 PDT"]
[Termination "alanmike75 won by checkmate"]

1. e4 {[%clk 0:04:58.9]} 1... e6 {[%clk 0:04:58.8]} 2. d4 {[%clk 0:04:57.5]}
2... d5 {[%clk 0:04:58.4]} 3. e5 {[%clk 0:04:54.9]} 3... c5 {[%clk 0:04:57.8]}
4. c3 {[%clk 0:04:53.7]} 4... a6 {[%clk 0:04:56.7]} 5. Nf3 {[%clk 0:04:52.6]}
5... b5 {[%clk 0:04:55.7]} 6. Be2 {[%clk 0:04:50.8]} 6... c4 {[%clk 0:04:55.1]}
7. O-O {[%clk 0:04:49.4]} 7... Be7 {[%clk 0:04:50.7]} 8. a3 {[%clk 0:04:45.8]}
8... a5 {[%clk 0:04:49.3]} 9. Nbd2 {[%clk 0:04:43.8]} 9... Ba6 {[%clk
0:04:48.5]} 10. Re1 {[%clk 0:04:42.5]} 10... Nc6 {[%clk 0:04:47.4]} 11. Nf1
{[%clk 0:04:41.1]} 11... h6 {[%clk 0:04:38.3]} 12. Ng3 {[%clk 0:04:35.2]} 12...
Bg5 {[%clk 0:04:36.7]} 13. Nxg5 {[%clk 0:04:33.7]} 13... hxg5 {[%clk 0:04:34.6]}
14. Qd2 {[%clk 0:04:31.9]} 14... Nh6 {[%clk 0:04:23.9]} 15. Qxg5 {[%clk
0:04:29.2]} 15... Qxg5 {[%clk 0:04:22.3]} 16. Bxg5 {[%clk 0:04:27.7]} 16... Kd7
{[%clk 0:04:08.4]} 17. f4 {[%clk 0:04:15.5]} 17... Nf5 {[%clk 0:04:00.2]} 18.
Nxf5 {[%clk 0:04:12.3]} 18... exf5 {[%clk 0:03:59.2]} 19. g4 {[%clk 0:04:06.5]}
19... Rh7 {[%clk 0:03:51.7]} 20. gxf5 {[%clk 0:04:02.4]} 20... Rah8 {[%clk
0:03:50.4]} 21. h4 {[%clk 0:03:58.5]} 21... Ne7 {[%clk 0:03:42.6]} 22. Bg4
{[%clk 0:03:54.7]} 22... Bc8 {[%clk 0:03:34.6]} 23. Re2 {[%clk 0:03:45.8]} 23...
Ke8 {[%clk 0:03:32.9]} 24. Bxe7 {[%clk 0:03:38.2]} 24... Kxe7 {[%clk 0:03:31.5]}
25. f6+ {[%clk 0:03:37]} 25... gxf6 {[%clk 0:03:27.7]} 26. exf6+ {[%clk
0:03:29.9]} 26... Kxf6 {[%clk 0:03:27]} 27. Bxc8 {[%clk 0:03:28.1]} 27... Rxh4
{[%clk 0:03:25.2]} 28. Kf2 {[%clk 0:03:08.1]} 28... Rxf4+ {[%clk 0:02:57.5]} 29.
Kg3 {[%clk 0:03:06.8]} 29... Kg5 {[%clk 0:02:37]} 30. Bh3 {[%clk 0:02:55.3]}
30... Rf6 {[%clk 0:02:18.4]} 31. Re5+ {[%clk 0:02:45.4]} 31... Kh6 {[%clk
0:02:11.8]} 32. Bg4 {[%clk 0:02:38.1]} 32... Rg8 {[%clk 0:02:07.7]} 33. Rh1+
{[%clk 0:02:35.7]} 33... Kg7 {[%clk 0:02:05.9]} 34. Rg5+ {[%clk 0:02:33.7]}
34... Kf8 {[%clk 0:02:02.7]} 35. Rxg8+ {[%clk 0:02:32.3]} 35... Kxg8 {[%clk
0:02:01.7]} 36. Rh5 {[%clk 0:02:29.8]} 36... Rg6 {[%clk 0:02:00]} 37. Rxd5
{[%clk 0:02:27.4]} 37... b4 {[%clk 0:01:53.7]} 38. Rxa5 {[%clk 0:02:22.3]} 38...
bxc3 {[%clk 0:01:52.3]} 39. bxc3 {[%clk 0:02:21.1]} 39... Kf8 {[%clk 0:01:46.5]}
40. Kf4 {[%clk 0:02:19.5]} 40... Ke7 {[%clk 0:01:39.6]} 41. Rc5 {[%clk
0:02:09.4]} 41... Kd6 {[%clk 0:01:37.4]} 42. a4 {[%clk 0:02:07.5]} 42... f6
{[%clk 0:01:30.4]} 43. a5 {[%clk 0:02:04.4]} 43... Rg7 {[%clk 0:01:29]} 44. a6
{[%clk 0:02:02.8]} 44... Ra7 {[%clk 0:01:00.9]} 45. Ra5 {[%clk 0:02:00.7]} 45...
Kc7 {[%clk 0:00:57.2]} 46. Bf3 {[%clk 0:01:59.4]} 46... Kb6 {[%clk 0:00:56]} 47.
Ra4 {[%clk 0:01:57.9]} 47... Kb5 {[%clk 0:00:42.2]} 48. Ra1 {[%clk 0:01:46.3]}
48... Kb6 {[%clk 0:00:37.3]} 49. Bb7 {[%clk 0:01:44.1]} 49... Kb5 {[%clk
0:00:30.8]} 50. Kf5 {[%clk 0:01:39.4]} 50... Kb6 {[%clk 0:00:18.1]} 51. Kxf6
{[%clk 0:01:38.2]} 51... Kc7 {[%clk 0:00:16.5]} 52. Ke7 {[%clk 0:01:36.8]} 52...
Kb8 {[%clk 0:00:12.4]} 53. d5 {[%clk 0:01:34.7]} 53... Kc7 {[%clk 0:00:10.7]}
54. d6+ {[%clk 0:01:33.5]} 54... Kb8 {[%clk 0:00:10]} 55. d7 {[%clk 0:01:32.4]}
55... Kc7 {[%clk 0:00:08.7]} 56. d8=Q# {[%clk 0:01:29.7]} 1-0

[Event "Live Chess"]
[Site "Chess.com"]
[Date "2023.05.20"]
[Round "-"]
[White "djw60"]
[Black "JohanKjeldahl"]
[Result "1-0"]
[WhiteElo "2117"]
[BlackElo "1818"]
[TimeControl "300"]
[EndTime "13:02:27 PDT"]
[Termination "djw60 won on time"]

1. Nf3 {[%clk 0:04:58.1]} 1... Nf6 {[%clk 0:04:57.9]} 2. g3 {[%clk 0:04:56.4]}
2... d5 {[%clk 0:04:55.8]} 3. Bg2 {[%clk 0:04:55.8]} 3... c6 {[%clk 0:04:49.3]}
4. O-O {[%clk 0:04:52.7]} 4... g6 {[%clk 0:04:48.2]} 5. c4 {[%clk 0:04:51]} 5...
Bg7 {[%clk 0:04:46.2]} 6. Qc2 {[%clk 0:04:45.1]} 6... O-O {[%clk 0:04:44.5]} 7.
d3 {[%clk 0:04:42.1]} 7... Nbd7 {[%clk 0:04:31.8]} 8. b3 {[%clk 0:04:33.1]} 8...
e5 {[%clk 0:04:26.4]} 9. Bb2 {[%clk 0:04:31.8]} 9... d4 {[%clk 0:04:25.3]} 10.
Nbd2 {[%clk 0:04:24.6]} 10... Qe7 {[%clk 0:04:22.5]} 11. e3 {[%clk 0:04:13.3]}
11... dxe3 {[%clk 0:04:17.4]} 12. fxe3 {[%clk 0:04:11.9]} 12... b6 {[%clk
0:04:08.8]} 13. Rae1 {[%clk 0:04:05.7]} 13... Bb7 {[%clk 0:04:07.4]} 14. d4
{[%clk 0:03:51]} 14... exd4 {[%clk 0:04:02.4]} 15. exd4 {[%clk 0:03:48.5]} 15...
Qd6 {[%clk 0:03:56.3]} 16. Ne5 {[%clk 0:03:23]} 16... Rae8 {[%clk 0:03:46.8]}
17. c5 {[%clk 0:03:11.4]} 17... bxc5 {[%clk 0:03:39]} 18. Ndc4 {[%clk
0:03:10.2]} 18... Qc7 {[%clk 0:03:31.1]} 19. dxc5 {[%clk 0:02:58.3]} 19... Nxe5
{[%clk 0:03:19.7]} 20. Bxe5 {[%clk 0:02:53.8]} 20... Qd7 {[%clk 0:03:04.9]} 21.
Rd1 {[%clk 0:02:13.5]} 21... Nd5 {[%clk 0:02:54.4]} 22. Bd6 {[%clk 0:02:03]}
22... Qg4 {[%clk 0:02:22.1]} 23. Bxf8 {[%clk 0:01:46.8]} 23... Bxf8 {[%clk
0:02:18.1]} 24. Rde1 {[%clk 0:01:21.6]} 24... Bxc5+ {[%clk 0:02:14.7]} 25. Kh1
{[%clk 0:01:20.5]} 25... Rxe1 {[%clk 0:01:44.8]} 26. Rxe1 {[%clk 0:01:18.2]}
26... Ba6 {[%clk 0:01:39.7]} 27. Ne5 {[%clk 0:01:13.7]} 27... Qd4 {[%clk
0:01:27.6]} 28. Rd1 {[%clk 0:01:09.1]} 28... Qxe5 {[%clk 0:01:23.1]} 29. Qxc5
{[%clk 0:01:07.8]} 29... Qe2 {[%clk 0:01:10.4]} 30. Qc1 {[%clk 0:00:59.7]} 30...
Ne3 {[%clk 0:01:07.7]} 31. Rg1 {[%clk 0:00:53.7]} 31... Nxg2 {[%clk 0:00:54.6]}
32. Rxg2 {[%clk 0:00:52.3]} 32... Qf3 {[%clk 0:00:52.3]} 33. Kg1 {[%clk
0:00:29.5]} 33... Bb5 {[%clk 0:00:49.8]} 34. Rf2 {[%clk 0:00:27.8]} 34... Qd5
{[%clk 0:00:44.9]} 35. Qd2 {[%clk 0:00:24.9]} 35... Qe5 {[%clk 0:00:37.4]} 36.
Rf4 {[%clk 0:00:17.7]} 36... Qa1+ {[%clk 0:00:33.9]} 37. Kg2 {[%clk 0:00:15.6]}
37... c5 {[%clk 0:00:29.1]} 38. Qd8+ {[%clk 0:00:13.9]} 38... Kg7 {[%clk
0:00:27.9]} 39. Qd2 {[%clk 0:00:13]} 39... Bc6+ {[%clk 0:00:24.6]} 40. Kh3
{[%clk 0:00:11.4]} 40... Qe5 {[%clk 0:00:19.9]} 41. Qf2 {[%clk 0:00:09.7]} 41...
Qe6+ {[%clk 0:00:17.1]} 42. g4 {[%clk 0:00:08.1]} 42... h5 {[%clk 0:00:15.1]}
43. Kg3 {[%clk 0:00:07]} 43... hxg4 {[%clk 0:00:11.7]} 44. Rxg4 {[%clk
0:00:06.3]} 44... Qe5+ {[%clk 0:00:09.9]} 45. Qf4 {[%clk 0:00:05.4]} 45... Qe1+
{[%clk 0:00:08.2]} 46. Kh3 {[%clk 0:00:03.7]} 46... Bd7 {[%clk 0:00:04.6]} 47.
Qg3 {[%clk 0:00:02.2]} 47... Qxg3+ {[%clk 0:00:02.6]} 48. Kxg3 {[%clk
0:00:01.4]} 48... Bxg4 {[%clk 0:00:01.7]} 49. Kxg4 {[%clk 0:00:01.3]} 49... f5+
{[%clk 0:00:00.8]} 50. Kf4 {[%clk 0:00:00.9]} 1-0

[Event "Live Chess"]
[Site "Chess.com"]
[Date "2023.05.20"]
[Round "-"]
[White "fretle"]
[Black "LL220284LL"]
[Result "0-1"]
[WhiteElo "1850"]
[BlackElo "2401"]
[TimeControl "300"]
[EndTime "13:02:28 PDT"]
[Termination "LL220284LL won by resignation"]

1. f4 {[%clk 0:04:57.5]} 1... Nh6 {[%clk 0:04:58.3]} 2. Nf3 {[%clk 0:04:55.7]}
2... d5 {[%clk 0:04:57.6]} 3. b3 {[%clk 0:04:54.3]} 3... c6 {[%clk 0:04:55.1]}
4. Bb2 {[%clk 0:04:53.5]} 4... Bg4 {[%clk 0:04:54.1]} 5. e3 {[%clk 0:04:51]}
5... Nf5 {[%clk 0:04:52.5]} 6. Bd3 {[%clk 0:04:44.3]} 6... e6 {[%clk 0:04:49.8]}
7. Bxf5 {[%clk 0:04:39.4]} 7... Bxf5 {[%clk 0:04:48.5]} 8. O-O {[%clk
0:04:35.5]} 8... Nd7 {[%clk 0:04:47.1]} 9. d3 {[%clk 0:04:29.5]} 9... Rg8 {[%clk
0:04:44.8]} 10. Nbd2 {[%clk 0:04:27.8]} 10... h6 {[%clk 0:04:43.3]} 11. h3
{[%clk 0:04:25.4]} 11... g5 {[%clk 0:04:42]} 12. fxg5 {[%clk 0:04:21.7]} 12...
hxg5 {[%clk 0:04:41.9]} 13. e4 {[%clk 0:04:21.1]} 13... Bg6 {[%clk 0:04:38.8]}
14. Ne5 {[%clk 0:04:05.5]} 14... Nxe5 {[%clk 0:04:25.7]} 15. Bxe5 {[%clk
0:04:03.8]} 15... Bd6 {[%clk 0:04:14.5]} 16. Bf6 {[%clk 0:03:59.6]} 16... Be7
{[%clk 0:04:10]} 17. e5 {[%clk 0:03:58.8]} 17... Bxf6 {[%clk 0:04:06.8]} 18.
Rxf6 {[%clk 0:03:55.5]} 18... Qb6+ {[%clk 0:04:06.2]} 19. Kh2 {[%clk 0:03:47.8]}
19... O-O-O {[%clk 0:04:04.1]} 20. Qe2 {[%clk 0:03:21]} 20... g4 {[%clk
0:03:49.6]} 21. a4 {[%clk 0:02:56.6]} 21... gxh3 {[%clk 0:03:45.8]} 22. g3
{[%clk 0:02:56]} 22... Bf5 {[%clk 0:03:39.6]} 23. a5 {[%clk 0:02:52.7]} 23...
Qc7 {[%clk 0:03:38.8]} 24. b4 {[%clk 0:02:42.2]} 24... Rg7 {[%clk 0:03:36.8]}
25. Rb1 {[%clk 0:02:34.6]} 25... Rdg8 {[%clk 0:03:35.2]} 26. Nf1 {[%clk
0:02:33.4]} 26... c5 {[%clk 0:03:29.9]} 27. Qf2 {[%clk 0:02:11.1]} 27... Qxe5
{[%clk 0:03:21.8]} 28. Qxc5+ {[%clk 0:02:05.6]} 28... Kb8 {[%clk 0:03:20.9]} 29.
Rxf5 {[%clk 0:01:44.6]} 29... exf5 {[%clk 0:03:15.4]} 30. Qf2 {[%clk 0:01:42.8]}
30... f4 {[%clk 0:03:13.3]} 0-1

[Event "Live Chess"]
[Site "Chess.com"]
[Date "2023.05.20"]
[Round "-"]
[White "Wild_Tiger"]
[Black "EdenHazard8"]
[Result "0-1"]
[WhiteElo "1056"]
[BlackElo "2084"]
[TimeControl "300"]
[EndTime "13:02:29 PDT"]
[Termination "EdenHazard8 won on time"]

1. d4 {[%clk 0:04:58.2]} 1... e5 {[%clk 0:04:59]} 2. e3 {[%clk 0:04:54.6]} 2...
exd4 {[%clk 0:04:57.9]} 3. exd4 {[%clk 0:04:50.4]} 3... d5 {[%clk 0:02:42.1]} 4.
Nf3 {[%clk 0:04:44]} 4... Nf6 {[%clk 0:02:40.9]} 5. Bg5 {[%clk 0:04:41.1]} 5...
c6 {[%clk 0:02:39.9]} 6. Bd3 {[%clk 0:04:36.6]} 6... Be7 {[%clk 0:02:38.2]} 7.
O-O {[%clk 0:04:32.4]} 7... O-O {[%clk 0:02:34]} 8. Nbd2 {[%clk 0:04:29.4]} 8...
h6 {[%clk 0:02:32.8]} 9. Bxf6 {[%clk 0:04:20.7]} 9... Bxf6 {[%clk 0:02:31.5]}
10. Ne5 {[%clk 0:04:17.7]} 10... Re8 {[%clk 0:02:28.9]} 11. Ndf3 {[%clk
0:04:08.7]} 11... Qb6 {[%clk 0:02:26.2]} 12. b3 {[%clk 0:04:01.7]} 12... Nd7
{[%clk 0:02:24.4]} 13. Re1 {[%clk 0:03:56.5]} 13... Nf8 {[%clk 0:02:08.6]} 14.
c3 {[%clk 0:03:40.5]} 14... Be6 {[%clk 0:02:06.5]} 15. a4 {[%clk 0:03:27.2]}
15... a5 {[%clk 0:01:52.3]} 16. h3 {[%clk 0:03:06.5]} 16... c5 {[%clk
0:01:47.3]} 17. Bb5 {[%clk 0:02:57.2]} 17... Rec8 {[%clk 0:01:46]} 18. Nh2
{[%clk 0:02:42.8]} 18... cxd4 {[%clk 0:01:43.7]} 19. cxd4 {[%clk 0:02:38]} 19...
Bxe5 {[%clk 0:01:29]} 20. Rxe5 {[%clk 0:02:28.3]} 20... Ng6 {[%clk 0:01:28]} 21.
Re3 {[%clk 0:02:18.5]} 21... Rc7 {[%clk 0:01:10.7]} 22. Ng4 {[%clk 0:02:08.4]}
22... Rac8 {[%clk 0:01:08.6]} 23. Kh2 {[%clk 0:01:41]} 23... Qd6+ {[%clk
0:01:06]} 24. Ne5 {[%clk 0:01:35.1]} 24... f6 {[%clk 0:00:58.4]} 25. Rg3 {[%clk
0:01:16.4]} 25... Nxe5 {[%clk 0:00:50.4]} 26. dxe5 {[%clk 0:01:12.7]} 26... fxe5
{[%clk 0:00:50.3]} 27. Qd2 {[%clk 0:00:42.2]} 27... Bf7 {[%clk 0:00:41.9]} 28.
Bc4 {[%clk 0:00:29.6]} 28... Qc6 {[%clk 0:00:19]} 29. Bxd5 {[%clk 0:00:19.1]}
29... Qxd5 {[%clk 0:00:17.3]} 30. Qxh6 {[%clk 0:00:16.5]} 30... Be6 {[%clk
0:00:15.4]} 31. Qg6 {[%clk 0:00:14.2]} 31... Qd7 {[%clk 0:00:11.2]} 32. Rb1
{[%clk 0:00:08.9]} 32... Qf7 {[%clk 0:00:10.3]} 33. Qg5 {[%clk 0:00:06.4]} 33...
e4 {[%clk 0:00:08.8]} 34. Qe3 {[%clk 0:00:05.5]} 34... Rc3 {[%clk 0:00:07.9]}
35. Qxc3 {[%clk 0:00:04]} 35... Rxc3 {[%clk 0:00:06.9]} 36. Rxc3 {[%clk
0:00:03.4]} 36... Bd5 {[%clk 0:00:06.5]} 37. Rc8+ {[%clk 0:00:01.8]} 37... Kh7
{[%clk 0:00:05.6]} 0-1

[Event "Live Chess"]
[Site "Chess.com"]
[Date "2023.05.20"]
[Round "-"]
[White "blunderabit"]
[Black "EdvancedChess"]
[Result "0-1"]
[WhiteElo "1878"]
[BlackElo "1898"]
[TimeControl "300"]
[EndTime "13:02:37 PDT"]
[Termination "EdvancedChess won on time"]

1. e4 {[%clk 0:04:58.2]} 1... e5 {[%clk 0:04:57.7]} 2. Nf3 {[%clk 0:04:55.5]}
2... Nc6 {[%clk 0:04:56.6]} 3. Bb5 {[%clk 0:04:53.3]} 3... Nf6 {[%clk
0:04:50.4]} 4. O-O {[%clk 0:04:50.5]} 4... Nxe4 {[%clk 0:04:46.3]} 5. Re1 {[%clk
0:04:48.6]} 5... Nd6 {[%clk 0:04:45.4]} 6. a4 {[%clk 0:04:46.6]} 6... Be7 {[%clk
0:04:38.6]} 7. Nc3 {[%clk 0:04:44.5]} 7... O-O {[%clk 0:04:36.9]} 8. d4 {[%clk
0:04:32.9]} 8... exd4 {[%clk 0:04:34.2]} 9. Nd5 {[%clk 0:04:31.2]} 9... Bf6
{[%clk 0:04:22.6]} 10. Nxf6+ {[%clk 0:04:13.9]} 10... Qxf6 {[%clk 0:04:12.4]}
11. Bg5 {[%clk 0:04:10.4]} 11... Qg6 {[%clk 0:04:02.6]} 12. Bd3 {[%clk 0:04:08]}
12... Qh5 {[%clk 0:04:01.3]} 13. Bf4 {[%clk 0:03:50.9]} 13... Nf5 {[%clk
0:03:33.8]} 14. Bxc7 {[%clk 0:03:28.6]} 14... d5 {[%clk 0:03:32.5]} 15. Ne5
{[%clk 0:02:46.2]} 15... Qxd1 {[%clk 0:03:30]} 16. Raxd1 {[%clk 0:02:43.5]}
16... Be6 {[%clk 0:03:27.9]} 17. Nf3 {[%clk 0:02:17.8]} 17... Rac8 {[%clk
0:03:22.2]} 18. Bf4 {[%clk 0:02:13.4]} 18... Rfe8 {[%clk 0:03:12.3]} 19. g4
{[%clk 0:02:01.4]} 19... Nfe7 {[%clk 0:03:09.6]} 20. h3 {[%clk 0:01:59]} 20...
Ng6 {[%clk 0:03:05.5]} 21. Bd2 {[%clk 0:01:54.4]} 21... a6 {[%clk 0:03:03.7]}
22. Ng5 {[%clk 0:01:48.3]} 22... Bd7 {[%clk 0:03:00.2]} 23. Nf3 {[%clk
0:01:37.7]} 23... Nge5 {[%clk 0:02:54.4]} 24. Kg2 {[%clk 0:01:22.1]} 24... Nxd3
{[%clk 0:02:52.7]} 25. cxd3 {[%clk 0:01:21.2]} 25... Ne7 {[%clk 0:02:45.9]} 26.
Nxd4 {[%clk 0:01:16.6]} 26... Bxa4 {[%clk 0:02:44.6]} 27. Rc1 {[%clk 0:01:13.4]}
27... Nc6 {[%clk 0:02:35.9]} 28. Nf5 {[%clk 0:00:57.2]} 28... Bb5 {[%clk
0:02:29]} 29. Nd6 {[%clk 0:00:50.2]} 29... Rxe1 {[%clk 0:02:27.5]} 30. Rxe1
{[%clk 0:00:48.9]} 30... Rd8 {[%clk 0:02:23.9]} 31. Nxb5 {[%clk 0:00:45.9]}
31... axb5 {[%clk 0:02:23.1]} 32. Bf4 {[%clk 0:00:40.8]} 32... f6 {[%clk
0:02:20]} 33. Bc7 {[%clk 0:00:29.5]} 33... Rd7 {[%clk 0:02:18.8]} 34. Bb6 {[%clk
0:00:28.3]} 34... Kf7 {[%clk 0:02:08]} 35. f4 {[%clk 0:00:20.1]} 35... Nb4
{[%clk 0:01:55.9]} 36. d4 {[%clk 0:00:12.7]} 36... Nc6 {[%clk 0:01:41.2]} 37.
Bc5 {[%clk 0:00:07]} 37... Na5 {[%clk 0:01:39.8]} 38. f5 {[%clk 0:00:03.1]}
38... Nc4 {[%clk 0:01:38.4]} 39. Re2 {[%clk 0:00:01.9]} 39... b6 {[%clk
0:01:35.3]} 0-1